fUSD/lending_fUSD_20241227
["ID","MTS","AMOUNT","RATE_DAILY","PERIOD"]
[346884247,1735339864985,-500.0,0.00011585,2]
[346884248,1735339864995,-500.0,0.00011585,2]
[346884249,1735339865006,-500.0,0.00011585,2]
[346884250,1735339865016,-672.14,0.00011585,2]
[346884251,1735339865027,-500.0,0.00011585,2]
[346884252,1735339865037,-800.83,0.00011585,2]
[346884253,1735339865048,-500.0,0.00011585,2]
[346884254,1735339865059,-500.0,0.00011586,2]
[346884255,1735339865069,-500.0,0.00011586,2]
[346884256,1735339865080,-500.0,0.00011586,2]
[346884257,1735339865092,-500.0,0.00011586,2]
[346884258,1735339865103,-500.0,0.00011586,2]
[346884259,1735339865113,-500.0,0.00011586,2]
[346884260,1735339865123,-500.0,0.00011586,2]
[346884261,1735339865135,-500.0,0.00011586,2]
[346884262,1735339865145,-500.0,0.00011586,2]
[346884263,1735339865156,-500.0,0.00011586,2]
[346884264,1735339865168,-500.0,0.00011586,2]
[346884265,1735339865179,-500.0,0.00011586,2]
[346884266,1735339865189,-500.0,0.00011586,2]
[346884267,1735339865199,-500.0,0.00011586,2]
[346884268,1735339865209,-500.0,0.00011586,2]
[346884269,1735339865219,-500.0,0.00011586,2]
[346884270,1735339865230,-500.0,0.00011586,2]
[346884271,1735339865241,-500.0,0.00011586,2]
[346884272,1735339865252,-500.0,0.00011586,2]
[346884273,1735339865262,-500.0,0.00011586,2]
[346884274,1735339865274,-500.0,0.00011586,2]
[346884275,1735339865288,-500.0,0.00011586,2]
[346884276,1735339865300,-500.0,0.00011586,2]
[346884277,1735339865310,-500.0,0.00011586,2]
[346884278,1735339865320,-500.0,0.00011586,2]
[346884279,1735339865330,-201.12975471,0.00011586,2]
[346884280,1735339865342,-500.0,0.00011586,2]
[346884281,1735339865352,-500.0,0.00011586,2]
[346884282,1735339865363,-500.0,0.00011586,2]
[346884283,1735339865375,-500.0,0.00011586,2]
[346884284,1735339865386,-500.0,0.00011586,2]
[346884285,1735339865397,-500.0,0.00011586,2]
[346884286,1735339865407,-500.0,0.00011586,2]
[346884287,1735339865417,-500.0,0.00011586,2]
[346884288,1735339865427,-628.33,0.00011586,2]
[346884289,1735339865438,-500.0,0.00011586,2]
[346884290,1735339865448,-500.0,0.00011586,2]
[346884291,1735339865458,-500.0,0.00011586,2]
[346884292,1735339865471,-500.0,0.00011586,2]
[346884293,1735339865481,-500.0,0.00011586,2]
[346884294,1735339865492,-591.86,0.00011586,2]
[346884295,1735339865502,-500.0,0.00011586,2]
[346884296,1735339865514,-500.0,0.00011586,2]
[346884297,1735339865526,-500.0,0.00011586,2]
[346884298,1735339865536,-500.0,0.00011586,2]
[346884299,1735339865546,-500.0,0.00011586,2]
[346884300,1735339865557,-572.97,0.00011586,2]
[346884301,1735339865567,-500.0,0.00011586,2]
[346884302,1735339865577,-500.0,0.00011586,2]
[346884303,1735339865587,-500.0,0.00011586,2]
[346884304,1735339865598,-500.0,0.00011586,2]
[346884305,1735339865608,-500.0,0.00011586,2]
[346884306,1735339865619,-500.0,0.00011586,2]
[346884307,1735339865630,-500.0,0.00011586,2]
[346884308,1735339865641,-500.0,0.00011586,2]
[346884309,1735339865653,-534.5,0.00011586,2]
[346884310,1735339865664,-500.0,0.00011586,2]
[346884311,1735339865675,-500.0,0.00011586,2]
[346884312,1735339865688,-500.0,0.00011586,2]
[346884313,1735339865701,-500.0,0.00011586,2]
[346884314,1735339865712,-500.0,0.00011586,2]
[346884315,1735339865723,-500.0,0.00011586,2]
[346884316,1735339865733,-500.0,0.00011586,2]
[346884317,1735339865743,-500.0,0.00011586,2]
[346884318,1735339865753,-500.0,0.00011586,2]
[346884319,1735339865763,-500.0,0.00011586,2]
[346884320,1735339865773,-500.0,0.00011586,2]
[346884321,1735339865785,-568.53,0.00011586,2]
[346884322,1735339865794,-500.0,0.00011586,2]
[346884323,1735339865805,-500.0,0.00011586,2]
[346884324,1735339865816,-500.0,0.00011586,2]
[346884325,1735339865828,-500.0,0.00011586,2]
[346884326,1735339865841,-500.0,0.00011586,2]
[346884327,1735339865851,-500.0,0.00011586,2]
[346884328,1735339865862,-500.0,0.00011586,2]
[346884329,1735339865872,-635.27,0.00011586,2]
[346884330,1735339865883,-500.0,0.00011586,2]
[346884331,1735339865893,-500.0,0.00011586,2]
[346884332,1735339865904,-500.0,0.00011586,2]
[346884333,1735339865915,-500.0,0.00011586,2]
[346884334,1735339865925,-500.0,0.00011586,2]
[346884335,1735339865935,-500.0,0.00011586,2]
[346884336,1735339865946,-500.0,0.00011586,2]
[346884337,1735339865957,-504.62,0.00011586,2]
[346884338,1735339865967,-500.0,0.00011586,2]
[346884339,1735339865977,-500.0,0.00011586,2]
[346884340,1735339865987,-500.0,0.00011586,2]
[346884341,1735339865998,-596.66,0.00011586,2]
[346884342,1735339866008,-500.0,0.00011586,2]
[346884343,1735339866019,-539.41,0.00011586,2]
[346884344,1735339866029,-500.0,0.00011586,2]
[346884345,1735339866040,-500.0,0.00011586,2]
[346884346,1735339866050,-500.0,0.00011586,2]
[346884347,1735339866060,-500.0,0.00011586,2]
[346884348,1735339866071,-500.0,0.00011586,2]
[346884349,1735339866082,-500.0,0.00011586,2]
[346884350,1735339866096,-500.0,0.00011586,2]
[346884351,1735339866106,-500.0,0.00011586,2]
[346884352,1735339866117,-500.0,0.00011586,2]
[346884353,1735339866127,-500.0,0.00011586,2]
[346884354,1735339866137,-500.0,0.00011586,2]
[346884355,1735339866147,-500.0,0.00011586,2]
[346884356,1735339866158,-553.96,0.00011586,2]
[346884357,1735339866169,-500.0,0.00011586,2]
[346884358,1735339866179,-500.0,0.00011586,2]
[346884359,1735339866190,-500.0,0.00011586,2]
[346884360,1735339866200,-500.0,0.00011586,2]
[346884361,1735339866211,-500.0,0.00011586,2]
[346884362,1735339866221,-500.0,0.00011586,2]
[346884363,1735339866231,-558.42,0.00011586,2]
[346884364,1735339866242,-500.0,0.00011586,2]
[346884365,1735339866253,-500.0,0.00011586,2]
[346884366,1735339866263,-500.0,0.00011586,2]
[346884367,1735339866274,-500.0,0.00011586,2]
[346884368,1735339866285,-500.0,0.00011586,2]
[346884369,1735339866295,-500.0,0.00011586,2]
[346884370,1735339866306,-500.0,0.00011586,2]
[346884371,1735339866316,-500.0,0.00011586,2]
[346884372,1735339866326,-682.04,0.00011586,2]
[346884373,1735339866336,-500.0,0.00011586,2]
[346884374,1735339866673,-500.0,0.00011586,2]
[346884375,1735339866690,-653.51,0.00011586,2]
[346884376,1735339866699,-500.0,0.00011586,2]
[346884377,1735339866710,-500.0,0.00011586,2]
[346884378,1735339866720,-500.0,0.00011586,2]
[346884379,1735339866729,-908.7,0.00011733,2]
[346884380,1735339866739,-964.48,0.00011733,2]
[346884381,1735339866749,-1882.52,0.00011733,2]
[346884382,1735339866758,-1021.27,0.00011733,2]
[346884383,1735339866768,-762.0,0.00011733,2]
[346884384,1735339866778,-1265.09817,0.00011733,2]
[346884385,1735339866787,-1381.800066,0.00011733,2]
[346884386,1735339866797,-785.12,0.00011733,2]
[346884387,1735339866806,-799.11,0.00011733,2]
[346884388,1735339866816,-166.39,0.00011733,2]
[346884389,1735339866826,-500.0,0.00011733,2]
[346884390,1735339866835,-3328.76,0.00011733,2]
[346884391,1735339866845,-855.27,0.00011733,2]
[346884392,1735339866855,-836.61,0.00011733,2]
[346884393,1735339866865,-500.0,0.00011733,2]
[346884394,1735339866874,-1008.89,0.00011733,2]
[346884395,1735339866884,-734.52,0.00011733,2]
[346884396,1735339866895,-960.62,0.00011733,2]
[346884397,1735339866905,-1049.42,0.00011733,2]
[346884398,1735339866915,-886.99,0.00011733,2]
[346884399,1735339866925,-268.66402727,0.00011782,2]
[346884400,1735339866935,-1000.0,0.000118,4]
[346884401,1735339866945,-6024.72,0.0001182,2]
[346884402,1735339866955,-1510.25,0.0001182,2]
[346884403,1735339866964,-1392.78007,0.0001183,2]
[346884404,1735339866975,-4031.07,0.00011832,2]
[346884405,1735339866986,-2838.69,0.00011832,2]
[346884406,1735339866996,-500.0,0.00011832,2]
[346884407,1735339867005,-1098.39,0.00011832,2]
[346884408,1735339867016,-6380.65,0.00011832,2]
[346884409,1735339867027,-1062.79,0.00011832,2]
[346884410,1735339867037,-644.44,0.00011832,2]
[346884411,1735339867047,-1061.48,0.00011832,2]
[346884412,1735339867057,-2268.21,0.00011832,2]
[346884413,1735339867067,-1064.06,0.00011832,2]
[346884414,1735339867077,-2571.82,0.00011832,2]
[346884415,1735339867091,-500.0,0.00011832,2]
[346884416,1735339867101,-1236.51,0.00011832,2]
[346884417,1735339867111,-1049.5,0.00011832,2]
[346884418,1735339867121,-815.44,0.00011832,2]
[346884419,1735339867132,-752.2,0.00011832,2]
[346884420,1735339867142,-4434.07,0.00011832,2]
[346884421,1735339867152,-500.0,0.00011832,2]
[346884422,1735339867162,-827.67,0.00011832,2]
[346884423,1735339867172,-500.0,0.00011832,2]
[346884424,1735339867182,-500.0,0.00011832,2]
[346884425,1735339867192,-500.0,0.00011832,2]
[346884426,1735339867202,-1325.23,0.00011832,2]
[346884427,1735339867211,-727.69,0.00011832,2]
[346884428,1735339867222,-500.0,0.00011832,2]
[346884429,1735339867232,-500.0,0.00011832,2]
[346884430,1735339867242,-1966.17,0.00011832,2]
[346884431,1735339867251,-561.99,0.00011832,2]
[346884432,1735339867261,-1370.41,0.00011832,2]
[346884433,1735339867271,-500.0,0.00011832,2]
[346884434,1735339867282,-1634.37,0.00011832,2]
[346884435,1735339867292,-3156.36,0.00011832,2]
[346884436,1735339867302,-994.53,0.00011832,2]
[346884437,1735339867313,-1342.95,0.00011832,2]
[346884438,1735339867323,-500.0,0.00011832,2]
[346884439,1735339867334,-1003.45,0.00011832,2]
[346884440,1735339867345,-1200.96,0.00011832,2]
[346884441,1735339867355,-1151.31,0.00011832,2]
[346884442,1735339867365,-827.63,0.00011832,2]
[346884443,1735339867376,-1309.77,0.00011832,2]
[346884444,1735339867386,-1769.46,0.00011832,2]
[346884445,1735339867400,-2943.32,0.00011833,2]
[346884446,1735339867410,-14190.97,0.00011833,2]
[346884447,1735339867420,-1824.78,0.00011833,2]
[346884448,1735339867430,-928.95,0.00011833,2]
[346884449,1735339867440,-1089.7,0.00011833,2]
[346884450,1735339867450,-1496.74,0.00011833,2]
[346884451,1735339867460,-10189.37,0.00011833,2]
[346884452,1735339867470,-500.0,0.00011833,2]
[346884453,1735339867480,-1050.63,0.00011833,2]
[346884454,1735339867491,-2202.54,0.00011833,2]
[346884455,1735339867500,-943.62,0.00011833,2]
[346884456,1735339867510,-1298.18,0.00011833,2]
[346884457,1735339867520,-1447.64,0.00011834,2]
[346884458,1735339867530,-500.0,0.00011834,2]
[346884459,1735339867539,-1000.0,0.00011834,2]
[346884460,1735339867551,-988.07,0.00011834,2]
[346884461,1735339867562,-688.98,0.00011834,2]
[346884462,1735339867573,-500.0,0.00011857,2]
[346884463,1735339867583,-1321.03,0.00011857,2]
[346884464,1735339867592,-500.0,0.00011857,2]
[346884465,1735339867602,-4318.04,0.00011857,2]
[346884466,1735339867612,-1242.09,0.00011857,2]
[346884467,1735339867622,-756.16,0.00011857,2]
[346884468,1735339867631,-1623.53,0.00011857,2]
[346884469,1735339867640,-899.69,0.00011857,2]
[346884470,1735339867650,-1750.27,0.00011857,2]
[346884471,1735339867659,-586.9,0.00011857,2]
[346884472,1735339867669,-541.44,0.00011857,2]
[346884473,1735339867680,-500.0,0.00011857,2]
[346884474,1735339867689,-510.54,0.00011857,2]
[346884475,1735339867699,-500.0,0.00011857,2]
[346884476,1735339867708,-500.0,0.00011857,2]
[346884477,1735339867717,-1685.67,0.00011857,2]
[346884478,1735339867727,-500.0,0.00011857,2]
[346884479,1735339867736,-500.0,0.00011857,2]
[346884480,1735339867745,-500.0,0.00011858,2]
[346884481,1735339867755,-500.0,0.00011858,2]
[346884482,1735339867763,-500.0,0.00011858,2]
[346884483,1735339867774,-500.0,0.00011858,2]
[346884484,1735339867783,-500.0,0.00011858,2]
[346884485,1735339867793,-196.69460279,0.00011858,2]
[346884486,1735339867802,-500.0,0.00011858,2]
[346884487,1735339867811,-500.0,0.00011858,2]
[346884488,1735339867821,-500.0,0.00011858,2]
[346884489,1735339867830,-500.0,0.00011858,2]
[346884490,1735339867839,-500.0,0.00011858,2]
[346884491,1735339867848,-500.0,0.00011858,2]
[346884492,1735339867857,-997.68,0.00011858,2]
[346884493,1735339867867,-500.0,0.00011858,2]
[346884494,1735339867876,-500.0,0.00011858,2]
[346884495,1735339867886,-174.04968798,0.00011858,2]
[346884496,1735339867895,-500.0,0.00011859,2]
[346884497,1735339867904,-500.0,0.00011859,2]
[346884498,1735339867913,-500.0,0.00011859,2]
[346884499,1735339867922,-500.0,0.00011859,2]
[346884500,1735339867931,-500.0,0.00011859,2]
[346884501,1735339867941,-500.0,0.00011859,2]
[346884502,1735339867950,-500.0,0.00011859,2]
[346884503,1735339867959,-500.0,0.00011859,2]
[346884504,1735339867969,-500.0,0.00011859,2]
[346884505,1735339867979,-500.0,0.00011859,2]
[346884506,1735339867988,-500.0,0.00011859,2]
[346884507,1735339867997,-500.0,0.00011859,2]
[346884508,1735339868007,-500.0,0.00011859,2]
[346884509,1735339868017,-617.46313056,0.00011859,2]
[346884510,1735339868026,-500.0,0.00011859,2]
[346884511,1735339868036,-522.64,0.00011859,2]
[346884512,1735339868046,-500.0,0.00011859,2]
[346884513,1735339868055,-500.0,0.00011859,2]
[346884514,1735339868065,-515.46,0.00011859,2]
[346884515,1735339868075,-500.0,0.00011859,2]
[346884516,1735339868089,-509.72,0.00011859,2]
[346884517,1735339868099,-500.0,0.00011859,2]
[346884518,1735339868108,-500.0,0.00011859,2]
[346884519,1735339868118,-500.0,0.00011859,2]
[346884520,1735339868127,-500.0,0.00011859,2]
[346884521,1735339868137,-500.0,0.00011859,2]
[346884522,1735339868147,-500.0,0.00011859,2]
[346884523,1735339868156,-567.72,0.00011859,2]
[346884524,1735339868166,-500.0,0.00011859,2]
[346884525,1735339868175,-500.0,0.00011859,2]
[346884526,1735339868186,-500.0,0.00011859,2]
[346884527,1735339868196,-500.0,0.00011859,2]
[346884528,1735339868206,-500.0,0.00011859,2]
[346884529,1735339868216,-519.4,0.00011859,2]
[346884530,1735339868225,-500.0,0.00011859,2]
[346884531,1735339868235,-520.51,0.00011859,2]
[346884532,1735339868245,-500.0,0.00011859,2]
[346884533,1735339868254,-500.0,0.00011859,2]
[346884534,1735339868263,-500.0,0.00011859,2]
[346884535,1735339868273,-675.6,0.00011859,2]
[346884536,1735339868283,-500.0,0.00011859,2]
[346884537,1735339868293,-500.0,0.00011859,2]
[346884538,1735339868302,-500.0,0.00011859,2]
[346884539,1735339868312,-578.43,0.00011859,2]
[346884540,1735339868321,-501.73,0.00011859,2]
[346884541,1735339868330,-1231.82,0.00011859,2]
[346884542,1735339868339,-500.0,0.00011859,2]
[346884543,1735339868349,-630.06,0.00011859,2]
[346884544,1735339868358,-500.0,0.00011859,2]
[346884545,1735339868368,-500.0,0.00011859,2]
[346884546,1735339868378,-1135.5,0.00011859,2]
[346884547,1735339868387,-2630.9,0.00011859,2]
[346884548,1735339868397,-751.31,0.00011859,2]
[346884549,1735339868406,-1328.54,0.00011859,2]
[346884550,1735339868416,-557.47,0.00011859,2]
[346884551,1735339868426,-821.31,0.00011859,2]
[346884552,1735339868436,-2721.16,0.00011859,2]
[346884553,1735339868446,-855.72,0.00011859,2]
[346884554,1735339868455,-570.02,0.00011859,2]
[346884555,1735339868465,-965.31,0.00011859,2]
[346884556,1735339868474,-1981.56,0.00011859,2]
[346884557,1735339868483,-617.06,0.00011859,2]
[346884558,1735339868493,-582.64,0.00011859,2]
[346884559,1735339868503,-500.0,0.00011859,2]
[346884560,1735339868514,-500.0,0.00011859,2]
[346884561,1735339868525,-1807.2,0.00011859,2]
[346884562,1735339868534,-640.16,0.00011859,2]
[346884563,1735339868547,-500.0,0.00011859,2]
[346884564,1735339868558,-500.0,0.00011859,2]
[346884565,1735339868570,-736.07,0.00011859,2]
[346884566,1735339868579,-820.22,0.00011859,2]
[346884567,1735339868589,-500.0,0.00011859,2]
[346884568,1735339868598,-1723.95,0.00011859,2]
[346884569,1735339868608,-500.0,0.00011859,2]
[346884570,1735339868617,-624.83,0.00011859,2]
[346884571,1735339868627,-605.57,0.00011859,2]
[346884572,1735339868636,-777.71,0.00011859,2]
[346884573,1735339868645,-1432.12,0.00011859,2]
[346884574,1735339868656,-500.0,0.00011859,2]
[346884575,1735339868666,-500.0,0.00011859,2]
[346884576,1735339868677,-508.29,0.00011859,2]
[346884577,1735339868686,-886.31,0.00011859,2]
[346884578,1735339868696,-500.0,0.00011859,2]
[346884579,1735339868705,-500.0,0.00011859,2]
[346884580,1735339868715,-500.0,0.00011859,2]
[346884581,1735339868725,-500.0,0.00011859,2]
[346884582,1735339868734,-500.0,0.00011859,2]
[346884583,1735339868743,-500.0,0.00011859,2]
[346884584,1735339868754,-500.0,0.00011859,2]
[346884585,1735339868763,-672.14,0.00011859,2]
[346884586,1735339868773,-500.0,0.00011859,2]
[346884587,1735339868783,-800.83,0.00011859,2]
[346884588,1735339868792,-500.0,0.00011859,2]
[346884589,1735339868801,-500.0,0.0001186,2]
[346884590,1735339868810,-500.0,0.0001186,2]
[346884591,1735339868819,-500.0,0.0001186,2]
[346884592,1735339868828,-500.0,0.0001186,2]
[346884593,1735339868838,-500.0,0.0001186,2]
[346884594,1735339868847,-500.0,0.0001186,2]
[346884595,1735339868857,-500.0,0.0001186,2]
[346884596,1735339868866,-500.0,0.0001186,2]
[346884597,1735339868875,-500.0,0.0001186,2]
[346884598,1735339868885,-500.0,0.0001186,2]
[346884599,1735339868894,-500.0,0.0001186,2]
[346884600,1735339868903,-385.52862219,0.0001186,2]
[346884601,1735339868914,-500.0,0.0001186,2]
[346884602,1735339868926,-500.0,0.0001186,2]
[346884603,1735339868935,-500.0,0.0001186,2]
[346884604,1735339868945,-500.0,0.0001186,2]
[346884605,1735339868954,-500.0,0.0001186,2]
[346884606,1735339868964,-500.0,0.0001186,2]
[346884607,1735339868974,-500.0,0.0001186,2]
[346884608,1735339868984,-500.0,0.0001186,2]
[346884609,1735339868994,-500.0,0.0001186,2]
[346884610,1735339869003,-500.0,0.0001186,2]
[346884611,1735339869013,-414.10090697,0.0001186,2]
[346884612,1735339869022,-500.0,0.0001186,2]
[346884613,1735339869032,-500.0,0.0001186,2]
[346884614,1735339869041,-500.0,0.0001186,2]
[346884615,1735339869052,-500.0,0.0001186,2]
[346884616,1735339869062,-500.0,0.0001186,2]
[346884617,1735339869072,-500.0,0.0001186,2]
[346884618,1735339869083,-500.0,0.0001186,2]
[346884619,1735339869258,-500.0,0.0001186,2]
[346884620,1735339869269,-500.0,0.0001186,2]
[346884621,1735339869279,-500.0,0.0001186,2]
[346884622,1735339869289,-628.33,0.0001186,2]
[346884623,1735339869299,-500.0,0.0001186,2]
[346884624,1735339869308,-500.0,0.0001186,2]
[346884625,1735339869318,-500.0,0.0001186,2]
[346884626,1735339869327,-500.0,0.0001186,2]
[346884627,1735339869337,-500.0,0.0001186,2]
[346884628,1735339869347,-591.86,0.0001186,2]
[346884629,1735339869356,-338.0491034,0.0001186,2]
[346884630,1735339869700,-490.44403302,0.00011583,2]
[346884631,1735339869948,-1769.95,0.00010488,2]
[346884632,1735339869960,-500.0,0.00010488,2]
[346884633,1735339869969,-1769.95,0.00010762,2]
[346884634,1735339869979,-888.15,0.00010998,2]
[346884635,1735339869998,-168.52,0.00010998,2]
[346884636,1735339870009,-1769.95,0.00011036,2]
[346884637,1735339870018,-1056.67,0.00011272,2]
[346884638,1735339870027,-1056.67,0.00011546,2]
[346884639,1735339870037,-9.55596698,0.00011583,2]
[346884640,1735339870046,-24.62898848,0.00011857,2]
[346884641,1735339870058,-475.37101152,0.00011857,2]
[346884642,1735339870068,-161.9508966,0.0001186,2]
[346884643,1735339870079,-500.0,0.0001186,2]
[346884644,1735339870093,-385.65729188,0.0001186,2]
[346884645,1735339922089,1400.0,9.482e-05,2]
[346884646,1735340070810,-251.76,0.00010058,2]
[346884647,1735340070843,-249.66,0.00010058,2]
[346884648,1735340070874,-15.31,0.00010058,2]
[346884649,1735340073241,-2314.24,0.00010058,2]
[346884650,1735340073817,-247.48,0.00010262,2]
[346884651,1735340136618,-898.07277575,0.00010262,2]
[346884652,1735340136650,-253.49,0.00010262,2]
[346884653,1735340136680,-246.11,0.00010262,2]
[346884654,1735340136709,-254.7,0.00010262,2]
[346884655,1735340136736,-1145.55277575,0.00010363,2]
[346884656,1735340136761,-1000.0,0.00010363,2]
[346884657,1735340136788,-1000.0,0.00010363,2]
[346884658,1735340136816,-2500.0,0.00010363,2]
[346884659,1735340136848,-248.92,0.00010363,2]
[346884660,1735340136880,-248.17,0.00010363,2]
[346884661,1735340136909,-248.4,0.00010363,2]
[346884662,1735340136937,-245.14,0.00010363,2]
[346884663,1735340136966,-251.25,0.00010363,2]
[346884664,1735340136995,-251.38,0.00010363,2]
[346884665,1735340137021,-787.97,0.00010463,2]
[346884666,1735340137047,-707.72,0.00010463,2]
[346884667,1735340137076,-1651.91,0.00010463,2]
[346884668,1735340137104,-500.0,0.00010463,2]
[346884669,1735340137131,-1000.0,0.00010463,2]
[346884670,1735340137160,-1085.73,0.00010463,2]
[346884671,1735340137195,-741.05,0.00010463,2]
[346884672,1735340137221,-516.73,0.00010463,2]
[346884673,1735340137248,-2057.06,0.00010463,2]
[346884674,1735340137279,-245.95,0.00010463,2]
[346884675,1735340137308,-247.48,0.00010463,2]
[346884676,1735340137337,-247.58,0.00010463,2]
[346884677,1735340137363,-500.0,0.00010487,2]
[346884678,1735340137391,-500.0,0.00010487,2]
[346884679,1735340137418,-641.79,0.00010487,2]
[346884680,1735340137445,-500.0,0.00010487,2]
[346884681,1735340137474,-1486.17,0.00010487,2]
[346884682,1735340137501,-500.0,0.00010487,2]
[346884683,1735340137530,-500.0,0.00010487,2]
[346884684,1735340137559,-500.0,0.00010487,2]
[346884685,1735340137586,-3680.95,0.00010487,2]
[346884686,1735340137612,-500.0,0.00010487,2]
[346884687,1735340137639,-500.0,0.00010487,2]
[346884688,1735340137665,-615.16,0.00010487,2]
[346884689,1735340137693,-500.0,0.00010487,2]
[346884690,1735340137720,-495.5644485,0.00010487,2]
[346884691,1735340181690,700.0,9.482e-05,2]
[346884692,1735340202304,1400.0,9.482e-05,2]
[346884693,1735340306571,-300.0,0.00010261,2]
[346884694,1735340306602,-250.8,0.00010261,2]
[346884695,1735340306632,-254.08,0.00010262,2]
[346884696,1735340306662,-251.37,0.00010262,2]
[346884697,1735340306693,-250.92,0.00010262,2]
[346884698,1735340306724,-249.29,0.00010262,2]
[346884699,1735340306753,-251.46,0.00010262,2]
[346884700,1735340306781,-245.83,0.00010262,2]
[346884701,1735340306810,-245.74,0.00010262,2]
[346884702,1735340306839,-245.9,0.00010262,2]
[346884703,1735340307094,-246.29,0.00010262,2]
[346884704,1735340307122,-187.2635,0.00010389,2]
[346884705,1735340307152,-1040.49,0.00010463,2]
[346884706,1735340307180,-4.4355515,0.00010487,2]
[346884707,1735340307209,-500.0,0.00010487,2]
[346884708,1735340307235,-500.0,0.00010487,2]
[346884709,1735340307278,-500.0,0.00010487,2]
[346884710,1735340307308,-500.0,0.00010487,2]
[346884711,1735340307338,-500.0,0.00010487,2]
[346884712,1735340307366,-500.0,0.00010487,2]
[346884713,1735340307396,-500.0,0.00010487,2]
[346884714,1735340307427,-500.0,0.00010487,2]
[346884715,1735340307458,-500.0,0.00010487,2]
[346884716,1735340307489,-500.0,0.00010487,2]
[346884717,1735340307518,-500.0,0.00010487,2]
[346884718,1735340307546,-500.0,0.00010487,2]
[346884719,1735340307575,-500.0,0.00010487,2]
[346884720,1735340307602,-500.0,0.00010487,2]
[346884721,1735340307629,-500.0,0.00010487,2]
[346884722,1735340307656,-500.0,0.00010487,2]
[346884723,1735340307687,-500.0,0.00010487,2]
[346884724,1735340307714,-500.0,0.00010487,2]
[346884725,1735340307741,-500.0,0.00010487,2]
[346884726,1735340307768,-500.0,0.00010487,2]
[346884727,1735340307801,-996.4,0.00010487,2]
[346884728,1735340307829,-500.0,0.00010487,2]
[346884729,1735340307857,-500.0,0.00010487,2]
[346884730,1735340307885,-500.0,0.00010487,2]
[346884731,1735340307912,-500.0,0.00010487,2]
[346884732,1735340307941,-923.87,0.00010487,2]
[346884733,1735340307968,-500.0,0.00010487,2]
[346884734,1735340307996,-500.0,0.00010487,2]
[346884735,1735340308023,-500.0,0.00010487,2]
[346884736,1735340308051,-2040.87,0.00010487,2]
[346884737,1735340308080,-1094.88757,0.00010487,2]
[346884738,1735340308107,-851.62,0.00010487,2]
[346884739,1735340308135,-723.98,0.00010487,2]
[346884740,1735340308164,-844.5033785,0.00010487,2]
[346884747,1735340673705,897.35,8.219e-05,2]
[346885334,1735341032118,-2329.55,9.652e-05,2]
[346885335,1735341032127,-464.38,9.688e-05,2]
[346885336,1735341032137,-250.0,9.698e-05,2]
[346885337,1735341032146,-1000.0,9.749e-05,2]
[346885338,1735341032155,-203.3150481,9.822e-05,2]